Workbook

Sheet TAMAÑO DE PANEL SOLAR
B1: CENTURIÓN SELECCIÓN RÁPIDA | L1: FOR CALCULATION PURPOSES ONLY - NORMALLY HIDDEN
N2: Factors | O2: Potential losses due to dust etc | P2: 0.2
B3: TAMAÑO DEL PANEL | O3: Maximum charging voltage | P3: 18 | Q3: Volts
C4: Introduzca el número de operaciones diarias del sistema utilizado. Además, introduzca la corriente de funcionamiento y la duración del ciclo, si son diferentes a la nominal
B5: MOTOR | C5: NUMERO DE OPERACIONES POR DIA | D5: Corriente nominal de funcionamiento - Amperios | E5: Corriente de funcionamiento si es diferente a la nominal | F5: Tiempo de ciclo nominal (apertura y cierre) - segundos | G5: Tiempo de ciclo si es diferente al nominal (abrir y cerrar) | H5: VOLTAJE DEL SISTEMA | I5: ENERGIA CONSUMIDA Ah | L5: Running Current | M5: Cycle Time | N5: Energy consumed | O5: Controller | P5: Total Energy consumed | Q5: System Voltage
D6: =IFERROR(VLOOKUP(B6,DATOS!$1:$1048576,2,FALSE)," ") ->  | F6: =IFERROR(VLOOKUP(B6,DATOS!$1:$1048576,3,FALSE)," ") ->  | I6: =+P6 -> 0 | J6: Ah | L6: =IF(OR(E6=0,E6=" "),D6,E6) ->  | M6: =IF(OR(G6=0,F6=" "),F6,F6) ->  | N6: =+IFERROR(M6*L6/3600*C6,0) -> 0 | O6: =IFERROR(VLOOKUP(B6,DATOS!$1:$1048576,8,FALSE)*VLOOKUP(B6,DATOS!$1:$1048576,9,FALSE),0) -> 0 | P6: =+O6+N6 -> 0 | Q6: =IFERROR(VLOOKUP(B6,DATOS!$1:$1048576,5,FALSE),H6) -> 0
B9: ACCESORIOS | C9: Por favor, introduzca la cantidad de auxiliares Centurion que se utilizan
C10: CANTIDAD | D10: =O10 -> 0 | O10: =IF(Q6=12,"12V System Factor", IF(Q6=24,"24V System Factor",0)) -> 0
D11: NB - Es aconsejable seleccionar un regulador para el sistema. El sistema D10 24V requiere 2 reguladores, uno con cada panel. Introduzca sólo una cantidad de 1 cuando calcule la demanda de energía. NB El regulador puede manejar una potencia de panel de < 500W | I11: =+P11 -> 0 | J11: Ah | N11: =IFERROR(VLOOKUP(B11,DATOS!$A$42:$F$73,4,FALSE),0) -> 0 | O11: =IF(AND($Q$6=24,B11="Solar regulator (TES – 30A)"),1,IF($Q$6=12,1,IF($Q$6=24,0.65,0))) -> 0 | P11: =+N11*C11*O11 -> 0
I12: =+P12 -> 0 | J12: Ah | N12: =IFERROR(VLOOKUP(B12,DATOS!$A$42:$F$73,4,FALSE),0) -> 0 | O12: =IF(AND($Q$6=24,B12="Solar regulator (TES – 30A)"),1,IF($Q$6=12,1,IF($Q$6=24,0.65,0))) -> 0 | P12: =+N12*C12*O12 -> 0
I13: =+P13 -> 0 | J13: Ah | N13: =IFERROR(VLOOKUP(B13,DATOS!$A$42:$F$73,4,FALSE),0) -> 0 | O13: 0 | P13: =+N13*C13*O13 -> 0
I14: =+P14 -> 0 | J14: Ah | N14: =IFERROR(VLOOKUP(B14,DATOS!$A$42:$F$73,4,FALSE),0) -> 0 | O14: 0 | P14: =+N14*C14*O14 -> 0
I15: =+P15 -> 0 | J15: Ah | N15: =IFERROR(VLOOKUP(B15,DATOS!$A$42:$F$73,4,FALSE),0) -> 0 | O15: 0 | P15: =+N15*C15*O15 -> 0
H16: TOTAL | I16: =+P17 -> 0 | J16: Ah
C17: Energía total necesaria para cubrir la carga, 20% para pérdidas como suciedad en el panel, etc. y 15% para recargar la batería | O17: TOTAL ENERGY | P17: =SUM(P6:P16) -> 0
B18: Horas de sol efectivas ( Insolación ) | D18: Horas / día | F18: Energía total necesaria para cubrir la carga, 20% para pérdidas como suciedad en el panel, etc. y 15% para recargar la batería | O18: ADD FOR INEFFICIENCY | P18: =+P17/(1-Q18) -> 0 | Q18: =+P2 -> 0.2
I20: =+P20 -> 0 | J20: Ah | O20: ADD TO RECHARGE BATTERY | P20: =+P18/(1-Q20) -> 0 | Q20: =+I22 -> 0
B21: Tamaño mínimo del panel solar | C21: =IF(OR(P20=0,C18=0)," ",P20*P3/C18) ->  | D21: Watts
B22: =IF(B6="D10 sliding gate (24VDC system)","24V System - Require 2 panels, sized as per above, each with its own Solar regulator"," ") ->  | F22: ¿Quieres cambiar el exceso permitido para recargar la batería?
B24: TAMAÑO DE LA BATERÍA
C25: Introduzca el número de días consecutivos que el sistema debe trabajar con un mínimo de luz solar.
B26: Días Autonomía | D26: DÍAS
B27: DoD Permitido para la batería que se utiliza | C27: 0.4
C28: Tamaño de la batería
B29: Capacidad total de Ah necesaria | C29: =IF(OR(ISBLANK(C26),C26=0),"???",P17*C26/C27) -> ??? | D29: Ah | E29: Preferiblemente ciclo profundo

Sheet DATOS
A1: 1 | B1: 2 | C1: 3 | D1: 4 | E1: 5 | F1: 6 | G1: 7 | H1: 8 | I1: 9
A3: MOTOR | B3: CORRIENTE NOMINAL - Amp | C3: TIEMPO POR OPERACIÓN - SEGUNDOS ABIERTO Y CERRADO | D3: ENERGÍA CONSUMIDA POR OPERACIÓN (CICLO COMPLETO) - Ah | E3: VOLTAJE DEL SISTEMA | F3: MOTOR | G3: CONSUMO DE CORRIENTE QUIESCENTE - mA | H3: ENERGÍA CONSUMIDA - Ah | I3: FACTOR
A4: D2 Turbo Sliding Gate Operator | B4: 8 | C4: 10 | D4: =+B4*C4/3600 -> 0.02222222222 | E4: 12 | F4: Controller - D2 Turbo | G4: 95 | H4: =+G4*24/1000 -> 2.28 | I4: 1
A5: D5-EVO Sliding Gate Operator | B5: 8 | C5: 30 | D5: 0.06666666667 | E5: 12 | F5: Controller - EVO | G5: 75 | H5: 1.8 | I5: 1
A6: D10 Sliding Gate Operator (24VDC system) | B6: 6 | C6: 30 | D6: 0.05 | E6: 24 | F6: Controller - D10 | G6: 80 | H6: 1.92 | I6: 0.65
A7: D10 Turbo Sliding Gate Operator (24VDC system) | B7: 10 | C7: 20 | D7: =+B7*C7/3600 -> 0.05555555556 | E7: 24 | F7: Controller - D10 | G7: 80 | H7: =+G7*24/1000 -> 1.92 | I7: 0.65
A8: A10 Sliding Gate Operator (using DC convertor) | B8: 20 | C8: 30 | D8: 0.1666666667 | E8: 12 | F8: CP201 | G8: 16 | H8: 0.384 | I8: 1
A9: R3 Single Swing Gate Operator | B9: 4 | C9: 35 | D9: =+B9*C9/3600 -> 0.03888888889 | E9: 12 | F9: CP75 | G9: 16 | H9: =+G9*24/1000 -> 0.384 | I9: 1
A10: R3 Double Swing Gate Operator | B10: 8 | C10: 35 | D10: =+B10*C10/3600 -> 0.07777777778 | E10: 12 | F10: CP75 | G10: 16 | H10: =+G10*24/1000 -> 0.384 | I10: 1
A11: R5 Single Swing Gate Operator | B11: 5 | C11: 40 | D11: 0.05555555556 | E11: 12 | F11: CP75 | G11: 16 | H11: 0.384 | I11: 1
A12: R5 Double Swing Gate Operator | B12: 10 | C12: 40 | D12: 0.1111111111 | E12: 12 | F12: CP75 | G12: 16 | H12: 0.384 | I12: 1
A13: MAXI-MATE Single Swing Gate Operator | B13: 5 | C13: 40 | D13: 0.05555555556 | E13: 12 | F13: CP77 | G13: 25 | H13: 0.6 | I13: 1
A14: MAXI-MATE Double Swing Gate Operator | B14: 10 | C14: 40 | D14: 0.1111111111 | E14: 12 | F14: CP77 | G14: 25 | H14: 0.6 | I14: 1
A15: VECTOR Single Swing Gate Operator (V400) | B15: 2 | C15: 28 | D15: =+B15*C15/3600 -> 0.01555555556 | E15: 12 | F15: Controller - V-SERIES | G15: 48 | H15: =+G15*24/1000 -> 1.152 | I15: 1
A16: VECTOR Single Swing Gate Operator (V500) | B16: 2 | C16: 35 | D16: 0.01944444444 | E16: 12 | F16: Controller - V-SERIES | G16: 48 | H16: 1.152 | I16: 1
A17: VECTOR Double Swing Gate Operator (V400) | B17: 4 | C17: 28 | D17: 0.03111111111 | E17: 12 | F17: Controller - V-SERIES | G17: 48 | H17: 1.152 | I17: 1
A18: VECTOR Double Swing Gate Operator (V500) | B18: 4 | C18: 35 | D18: 0.03888888889 | E18: 12 | F18: Controller - V-SERIES | G18: 48 | H18: 1.152 | I18: 1
A19: VANTAGE Single Swing Gate Operator (VT400) | B19: 2 | C19: 28 | D19: =+B19*C19/3600 -> 0.01555555556 | E19: 12 | F19: Controller - V-SERIES | G19: 73 | H19: =+G19*24/1000 -> 1.752 | I19: 1
A20: VANTAGE Single Swing Gate Operator (VT500) | B20: 2 | C20: 35 | D20: 0.01944444444 | E20: 12 | F20: Controller - V-SERIES | G20: 48 | H20: 1.152 | I20: 1
A21: VANTAGE Double Swing Gate Operator (VT400) | B21: 4 | C21: 28 | D21: 0.03111111111 | E21: 12 | F21: Controller - V-SERIES | G21: 48 | H21: 1.152 | I21: 1
A22: VANTAGE Double Swing Gate Operator (VT500) | B22: 4 | C22: 35 | D22: 0.03888888889 | E22: 12 | F22: Controller - V-SERIES | G22: 48 | H22: 1.152 | I22: 1
A23: VERT-X Single Swing Gate Operator (VX300) | B23: 2 | C23: 25 | D23: =+B23*C23/3600 -> 0.01388888889 | E23: 12 | F23: Controller - V-SERIES | G23: 48 | H23: =+G23*24/1000 -> 1.152 | I23: 1
A24: VERT-X Double Swing Gate Operator (VX300) | B24: 4 | C24: 32 | D24: 0.03555555556 | E24: 12 | F24: Controller - V-SERIES | G24: 48 | H24: 1.152 | I24: 1
A25: SECTOR barrier (3M) | B25: 2 | C25: 2.5 | D25: =+B25*C25/3600 -> 0.001388888889 | E25: 12 | F25: Controller - SECTOR | G25: 50 | H25: =+G25*24/1000 -> 1.2 | I25: 1
A26: SECTOR barrier (4.5M or 6.0M) | B26: 2 | C26: 6 | D26: 0.003333333333 | E26: 12 | F26: Controller - SECTOR | G26: 50 | H26: 1.2 | I26: 1
A27: D5-EVO Sliding Gate Operator with Pulse Stretcher | B27: 8.1 | C27: 30 | D27: 0.0675 | E27: 12 | F27: Controller - EVO | G27: 75 | H27: 1.8 | I27: 1
D28: =+B28*C28/3600 -> 0 | H28: =+G28*24/1000 -> 0
D29: =+B29*C29/3600 -> 0 | H29: =+G29*24/1000 -> 0
D30: 0 | H30: 0
D31: 0 | H31: 0
D32: 0 | H32: 0
D33: 0 | H33: 0
D34: 0 | H34: 0
D35: 0 | H35: 0
D36: 0 | H36: 0
D37: 0 | H37: 0
D38: 0 | H38: 0
A41: ACCESORIOS | B41: QUIESCENT CURRENT DRAW - mA | D41: ENERGÍA CONSUMIDA - Ah | E41: VOLTAJE DEL SISTEMA | F41: CONSUMO PICO
A42: Regulador solar (TES - 30A) | B42: 10 | D42: =+B42*24/1000 -> 0.24 | E42: 12
A43: Regulador solar 20A (ESOLRPG020V1) | B43: 6 | D43: =+B43*24/1000 -> 0.144 | E43: 12
A44: I5 Sensores infrarrojos - Tx & Rx | B44: 67 | D44: =+B44*24/1000 -> 1.608 | E44: 12
A45: PHOTON Ssensores infrarrojos | B45: 30 | D45: 0.72 | E45: 12
A46: Receptor CENTURION de 1 canal | B46: 11 | D46: =+B46*24/1000 -> 0.264 | E46: 12
A47: Receptor CENTURION de 4 canales | B47: 25 | D47: 0.6 | E47: 12 | F47: 180
A48: Supa Helix Receiver | B48: 100 | D48: 2.4 | E48: 12 | F48: 270
A49: G-Switch 22 | B49: 80 | D49: 1.92 | E49: 12
A50: MYGSM 88 | B50: 120 | D50: 2.88 | E50: 12
A51: Panel de entrada de POLOphone | B51: 35 | D51: 0.84 | E51: 12
A52: Auricular POLOphone | B52: 25 | D52: 0.6 | E52: 12
A53: G-Speak Classic (Plus) | B53: 30 | D53: 0.72 | E53: 12
A54: Mkii GSM intercomunicador | B54: 350 | D54: 8.4 | E54: 12 | F54: 150
A55: SMARTGUARD (cableado) | B55: 32 | D55: 0.768 | E55: 12 | F55: 180
A56: SOLO Lector | B56: 50 | D56: 1.2 | E56: 12 | F56: 180
A57: Lattice Controlador | B57: 50 | D57: 1.2 | E57: 12 | F57: 180
A58: Lattice Lector Esclavo | B58: 50 | D58: =+B58*24/1000 -> 1.2 | E58: 12 | F58: 180
A59: Detector de bucle autónomo FLUX | B59: 50 | D59: =+B59*24/1000 -> 1.2 | E59: 12
A60: Detector de bucle enchufable FLUX 11 | B60: 50 | D60: 1.2 | E60: 12
A61: Convertidor DC-DC (usado con A10 para respaldo de batería) | B61: 150 | D61: 3.6 | E61: 12
A62: Borde de seguridad | B62: 30 | D62: =+B62*24/1000 -> 0.72 | E62: 12
A63: Ensanchador de pulsos | B63: 7 | D63: =+B63*24/1000 -> 0.168 | E63: 12
A64: G-ULTRA 2G | B64: 33 | D64: =+B64*24/1000 -> 0.792 | E64: 12
A65: G-SPEAK ULTRA 2G | B65: 72 | D65: 1.728 | E65: 12
A66: G-ULTRA 3G PENTA BAND | B66: 40 | D66: 0.96 | E66: 12
D67: 0
D68: =+B68*24/1000 -> 0
D69: 0
D70: 0
D71: 0
D72: 0
D73: 0
A75: Voltaje del sistema
A76: 12
A77: 24

Sheet MAPA SOLAR MUNDIAL
A1: MAPA SOLAR MUNDIAL
A25: FRANCE
A26: CIUDAD | B26: EFECTIVO
A27: RENNE | B27: 1.24
A28: NANTES | B28: 1.46
A29: LE HAVRE | B29: 1.18
A30: BORDEAUX | B30: 1.81
A31: TOULOUSE | B31: 2.53
A32: MARSEILLE | B32: 2.97
A33: NICE | B33: 2.58
A34: MONTPELLIER | B34: 1.65
A35: LYON | B35: 1.56
A36: REIMS | B36: 0.95
A37: PARIS | B37: 1.11

Sheet MAPA SOLAR AFRICA
A1: MAPA SOLAR AFRICA

Sheet 1 (hidden)
A1: solar
